[Event "Titled Tuesday Blitz May 18 2021"]
[White "Pantsulaia, Levan"]
[Black "Bernadskiy, Vitaliy"]
[WhiteFideId "13602071"]
[BlackFideId "14100371"]
[WhiteElo "2530"]
[BlackElo "2534"]
[Result "1-0"]
[Round "04"]
[TimeControl "180+1"]
[Date "2021.05.18"]
[WhiteClock "0:00:19"]
[BlackClock "0:00:02"]

1. g3 {[%clk 0:03:00]}  g6 {[%clk 0:03:00]} 2. Bg2 {[%clk 0:02:59]}  Bg7 {[%clk 0:03:01]} 3. Nf3 {[%clk 0:02:59]}  e6 {[%clk 0:03:02]} 4. O-O {[%clk 0:02:57]}  Ne7 {[%clk 0:03:02]} 5. c4 {[%clk 0:02:55]}  O-O {[%clk 0:03:02]} 6. d4 {[%clk 0:02:55]}  b6 {[%clk 0:03:02]} 7. Nc3 {[%clk 0:02:52]}  Bb7 {[%clk 0:03:02]} 8. e4 {[%clk 0:02:51]}  d6 {[%clk 0:03:02]} 9. Re1 {[%clk 0:02:50]}  Nd7 {[%clk 0:03:02]} 10. h4 {[%clk 0:02:39]}  c5 {[%clk 0:02:52]} 11. d5 {[%clk 0:02:36]}  e5 {[%clk 0:02:52]} 12. h5 {[%clk 0:02:35]}  Nf6 {[%clk 0:02:52]} 13. h6 {[%clk 0:02:29]}  Bh8 {[%clk 0:02:52]} 14. Bg5 {[%clk 0:02:29]}  Ne8 {[%clk 0:02:46]} 15. Rb1 {[%clk 0:02:28]}  Bc8 {[%clk 0:02:31]} 16. a3 {[%clk 0:02:17]}  f6 {[%clk 0:02:29]} 17. Be3 {[%clk 0:02:16]}  f5 {[%clk 0:02:29]} 18. Bg5 {[%clk 0:02:16]}  Nf6 {[%clk 0:02:27]} 19. b4 {[%clk 0:02:05]}  Nxe4 {[%clk 0:02:23]} 20. Nxe4 {[%clk 0:02:04]}  fxe4 {[%clk 0:02:24]} 21. Nd2 {[%clk 0:02:04]}  Bf5 {[%clk 0:02:15]} 22. Nxe4 {[%clk 0:01:55]}  Bxe4 {[%clk 0:02:15]} 23. Bxe4 {[%clk 0:01:54]}  Bf6 {[%clk 0:02:15]} 24. Bd2 {[%clk 0:01:49]}  Nf5 {[%clk 0:02:05]} 25. bxc5 {[%clk 0:01:49]}  dxc5 {[%clk 0:02:01]} 26. Bxf5 {[%clk 0:01:43]}  gxf5 {[%clk 0:02:01]} 27. Qh5 {[%clk 0:01:41]}  Qd7 {[%clk 0:01:55]} 28. Bc3 {[%clk 0:01:41]}  Rae8 {[%clk 0:01:54]} 29. Kg2 {[%clk 0:01:08]}  e4 {[%clk 0:01:49]} 30. Bd2 {[%clk 0:01:09]}  Bd4 {[%clk 0:01:42]} 31. Bf4 {[%clk 0:01:05]}  Qf7 {[%clk 0:01:33]} 32. Qxf7+ {[%clk 0:01:03]}  Kxf7 {[%clk 0:01:31]} 33. a4 {[%clk 0:01:04]}  Kg6 {[%clk 0:01:00]} 34. Re2 {[%clk 0:01:02]}  Be5 {[%clk 0:00:58]} 35. Bxe5 {[%clk 0:00:56]}  Rxe5 {[%clk 0:00:59]} 36. a5 {[%clk 0:00:56]}  bxa5 {[%clk 0:00:45]} 37. Rb5 {[%clk 0:00:54]}  f4 {[%clk 0:00:44]} 38. gxf4 {[%clk 0:00:53]}  Rxf4 {[%clk 0:00:45]} 39. Rxc5 {[%clk 0:00:46]}  Rg5+ {[%clk 0:00:30]} 40. Kf1 {[%clk 0:00:43]}  Rh4 {[%clk 0:00:29]} 41. Ke1 {[%clk 0:00:38]}  a4 {[%clk 0:00:15]} 42. Rc6+ {[%clk 0:00:32]}  Kh5 {[%clk 0:00:15]} 43. d6 {[%clk 0:00:28]}  a3 {[%clk 0:00:13]} 44. d7 {[%clk 0:00:21]}  Rh1+ {[%clk 0:00:11]} 45. Kd2 {[%clk 0:00:22]}  Rgg1 {[%clk 0:00:04]} 46. Ke3 {[%clk 0:00:19]}  Rd1 {[%clk 0:00:04]} 47. Rc5+ {[%clk 0:00:19]}  Kxh6 {[%clk 0:00:02]} 48. Rd5 {[%clk 0:00:19]}  Rxd5 {[%clk 0:00:02]} 49. cxd5 {[%clk 0:00:19]}  Rh3+ {[%clk 0:00:02]} 50. Kxe4 {[%clk 0:00:19]}  Rh4+ {[%clk 0:00:02]} 51. Ke5 {[%clk 0:00:19]} 1-0


[Site "https://www.chess.com"]

[Event "Titled Tuesday Blitz May 18 2021"]
[White "Pichot, Alan"]
[Black "Molina, Roberto Junio Brito"]
[WhiteFideId "110973"]
[BlackFideId "2109450"]
[WhiteElo "2622"]
[BlackElo "2402"]
[Result "0-1"]
[Round "04"]
[TimeControl "180+1"]
[Date "2021.05.18"]
[WhiteClock "0:00:03"]
[BlackClock "0:00:07"]

1. e4 {[%clk 0:03:00]}  c6 {[%clk 0:02:55]} 2. d4 {[%clk 0:02:58]}  d5 {[%clk 0:02:56]} 3. e5 {[%clk 0:02:58]}  Bf5 {[%clk 0:02:55]} 4. Nf3 {[%clk 0:02:57]}  e6 {[%clk 0:02:55]} 5. Be2 {[%clk 0:02:57]}  Nd7 {[%clk 0:02:54]} 6. c3 {[%clk 0:02:56]}  h6 {[%clk 0:02:55]} 7. O-O {[%clk 0:02:57]}  Ne7 {[%clk 0:02:54]} 8. a4 {[%clk 0:02:57]}  Bh7 {[%clk 0:02:54]} 9. a5 {[%clk 0:02:57]}  Ng6 {[%clk 0:02:51]} 10. a6 {[%clk 0:02:53]}  b6 {[%clk 0:02:49]} 11. b4 {[%clk 0:02:52]}  Be7 {[%clk 0:02:48]} 12. Re1 {[%clk 0:02:44]}  O-O {[%clk 0:02:48]} 13. Bd3 {[%clk 0:02:44]}  c5 {[%clk 0:02:42]} 14. Qa4 {[%clk 0:02:18]}  Rc8 {[%clk 0:02:36]} 15. Na3 {[%clk 0:02:15]}  c4 {[%clk 0:02:28]} 16. Bb1 {[%clk 0:02:09]}  Nb8 {[%clk 0:02:27]} 17. Nb5 {[%clk 0:02:07]}  Nc6 {[%clk 0:02:27]} 18. Qd1 {[%clk 0:01:50]}  Qd7 {[%clk 0:02:18]} 19. Na3 {[%clk 0:01:44]}  Rfe8 {[%clk 0:01:59]} 20. Ra2 {[%clk 0:01:36]}  Bxb4 {[%clk 0:01:38]} 21. cxb4 {[%clk 0:01:15]}  Nxb4 {[%clk 0:01:39]} 22. Rae2 {[%clk 0:01:09]}  Nxa6 {[%clk 0:01:37]} 23. h4 {[%clk 0:01:04]}  b5 {[%clk 0:01:31]} 24. h5 {[%clk 0:01:04]}  Nf8 {[%clk 0:01:31]} 25. Bxh7+ {[%clk 0:01:03]}  Nxh7 {[%clk 0:01:30]} 26. Nh4 {[%clk 0:00:50]}  Nb4 {[%clk 0:01:22]} 27. Re3 {[%clk 0:00:49]}  Nd3 {[%clk 0:01:21]} 28. Rg3 {[%clk 0:00:46]}  Kh8 {[%clk 0:01:00]} 29. Bd2 {[%clk 0:00:45]}  b4 {[%clk 0:00:53]} 30. Rxd3 {[%clk 0:00:39]}  cxd3 {[%clk 0:00:51]} 31. Bxb4 {[%clk 0:00:40]}  Qb7 {[%clk 0:00:42]} 32. Bc5 {[%clk 0:00:39]}  Qb2 {[%clk 0:00:34]} 33. Qxd3 {[%clk 0:00:38]}  Rb8 {[%clk 0:00:30]} 34. Rb1 {[%clk 0:00:32]}  Qa2 {[%clk 0:00:24]} 35. Nf3 {[%clk 0:00:32]}  Rxb1+ {[%clk 0:00:20]} 36. Nxb1 {[%clk 0:00:33]}  a5 {[%clk 0:00:14]} 37. Qb5 {[%clk 0:00:32]}  Rc8 {[%clk 0:00:14]} 38. Qb7 {[%clk 0:00:30]}  Rd8 {[%clk 0:00:11]} 39. Nbd2 {[%clk 0:00:30]}  Kg8 {[%clk 0:00:11]} 40. Qc7 {[%clk 0:00:28]}  Ra8 {[%clk 0:00:11]} 41. Qb7 {[%clk 0:00:28]}  Rd8 {[%clk 0:00:11]} 42. Nb3 {[%clk 0:00:18]}  Qb1+ {[%clk 0:00:09]} 43. Kh2 {[%clk 0:00:18]}  a4 {[%clk 0:00:09]} 44. Qc7 {[%clk 0:00:19]}  Ra8 {[%clk 0:00:09]} 45. Qc6 {[%clk 0:00:19]}  Rb8 {[%clk 0:00:05]} 46. Nbd2 {[%clk 0:00:11]}  Qb5 {[%clk 0:00:05]} 47. Qd6 {[%clk 0:00:08]}  Ra8 {[%clk 0:00:04]} 48. Nf1 {[%clk 0:00:05]}  Qa6 {[%clk 0:00:04]} 49. Qxa6 {[%clk 0:00:03]}  Rxa6 {[%clk 0:00:05]} 50. Ba3 {[%clk 0:00:04]}  Rb6 {[%clk 0:00:05]} 51. N1d2 {[%clk 0:00:04]}  Nf8 {[%clk 0:00:04]} 52. Ne1 {[%clk 0:00:03]}  Nd7 {[%clk 0:00:04]} 53. Nd3 {[%clk 0:00:04]}  Rb5 {[%clk 0:00:05]} 54. Kg3 {[%clk 0:00:03]}  Nb6 {[%clk 0:00:05]} 55. Kf3 {[%clk 0:00:02]}  Nc4 {[%clk 0:00:06]} 56. Nxc4 {[%clk 0:00:03]}  dxc4 {[%clk 0:00:07]} 57. Nb4 {[%clk 0:00:04]}  f6 {[%clk 0:00:05]} 58. exf6 {[%clk 0:00:02]}  gxf6 {[%clk 0:00:06]} 59. g4 {[%clk 0:00:02]}  f5 {[%clk 0:00:06]} 60. Kf4 {[%clk 0:00:02]}  fxg4 {[%clk 0:00:07]} 61. Kxg4 {[%clk 0:00:03]}  Rf5 {[%clk 0:00:07]} 62. f4 {[%clk 0:00:02]}  Kf7 {[%clk 0:00:08]} 63. Nc6 {[%clk 0:00:03]}  Rd5 {[%clk 0:00:07]} 0-1


[Site "https://www.chess.com"]

[Event "Titled Tuesday Blitz May 18 2021"]
[White "Rasulov, Vugar"]
[Black "Ezat, Mohamed"]
[WhiteFideId "13402390"]
[BlackFideId "10600906"]
[WhiteElo "2553"]
[BlackElo "2417"]
[Result "1-0"]
[Round "04"]
[TimeControl "180+1"]
[Date "2021.05.18"]
[WhiteClock "0:01:33"]
[BlackClock "0:00:11"]

1. e4 {[%clk 0:03:00]}  c6 {[%clk 0:02:59]} 2. d4 {[%clk 0:03:00]}  d5 {[%clk 0:02:59]} 3. e5 {[%clk 0:03:01]}  Bf5 {[%clk 0:02:58]} 4. Nf3 {[%clk 0:03:01]}  e6 {[%clk 0:02:58]} 5. Be2 {[%clk 0:03:01]}  Nd7 {[%clk 0:02:58]} 6. O-O {[%clk 0:03:01]}  h6 {[%clk 0:02:59]} 7. Nbd2 {[%clk 0:03:01]}  Ne7 {[%clk 0:02:59]} 8. Nb3 {[%clk 0:03:00]}  Ng6 {[%clk 0:02:55]} 9. a4 {[%clk 0:02:58]}  Be7 {[%clk 0:02:53]} 10. a5 {[%clk 0:02:58]}  O-O {[%clk 0:02:52]} 11. Ne1 {[%clk 0:02:56]}  Nh8 {[%clk 0:02:44]} 12. f4 {[%clk 0:02:55]}  Bh7 {[%clk 0:02:44]} 13. Bd3 {[%clk 0:02:54]}  f5 {[%clk 0:02:43]} 14. c4 {[%clk 0:02:48]}  a6 {[%clk 0:02:31]} 15. Nf3 {[%clk 0:02:44]}  g5 {[%clk 0:02:29]} 16. cxd5 {[%clk 0:02:44]}  cxd5 {[%clk 0:02:29]} 17. Bd2 {[%clk 0:02:35]}  Ng6 {[%clk 0:02:25]} 18. Rc1 {[%clk 0:02:33]}  Nxf4 {[%clk 0:02:21]} 19. Bxf4 {[%clk 0:02:33]}  gxf4 {[%clk 0:02:21]} 20. Qd2 {[%clk 0:02:33]}  Bg5 {[%clk 0:02:22]} 21. Qb4 {[%clk 0:02:32]}  Rb8 {[%clk 0:02:20]} 22. Qd6 {[%clk 0:02:31]}  Qe7 {[%clk 0:02:09]} 23. Rc7 {[%clk 0:02:27]}  Qxd6 {[%clk 0:02:08]} 24. exd6 {[%clk 0:02:28]}  Rfd8 {[%clk 0:02:08]} 25. Ne5 {[%clk 0:02:16]}  Nf8 {[%clk 0:01:41]} 26. Nc5 {[%clk 0:02:13]}  b5 {[%clk 0:00:53]} 27. Nc6 {[%clk 0:02:09]}  Bf6 {[%clk 0:00:52]} 28. Nxa6 {[%clk 0:02:02]}  Ra8 {[%clk 0:00:52]} 29. Nxd8 {[%clk 0:01:57]}  Rxd8 {[%clk 0:00:46]} 30. Bxb5 {[%clk 0:01:51]}  Bxd4+ {[%clk 0:00:45]} 31. Kh1 {[%clk 0:01:51]}  Rxd6 {[%clk 0:00:45]} 32. Rc6 {[%clk 0:01:47]}  Be5 {[%clk 0:00:43]} 33. Nc5 {[%clk 0:01:43]}  f3 {[%clk 0:00:35]} 34. gxf3 {[%clk 0:01:40]}  f4 {[%clk 0:00:35]} 35. a6 {[%clk 0:01:39]}  Rxc6 {[%clk 0:00:27]} 36. Bxc6 {[%clk 0:01:40]}  Bb8 {[%clk 0:00:28]} 37. Nd7 {[%clk 0:01:34]}  Nxd7 {[%clk 0:00:27]} 38. Bxd7 {[%clk 0:01:34]}  Kf7 {[%clk 0:00:26]} 39. Rc1 {[%clk 0:01:34]}  Ke7 {[%clk 0:00:24]} 40. Rc8 {[%clk 0:01:34]}  Ba7 {[%clk 0:00:24]} 41. Rc7 {[%clk 0:01:34]}  Bb6 {[%clk 0:00:19]} 42. Rb7 {[%clk 0:01:34]}  Be3 {[%clk 0:00:11]} 43. Bb5+ {[%clk 0:01:33]} 1-0


[Site "https://www.chess.com"]

[Event "Titled Tuesday Blitz May 18 2021"]
[White "Sadhwani, Raunak"]
[Black "Nikitenko, Mihail"]
[WhiteFideId "35093487"]
[BlackFideId "13506862"]
[WhiteElo "2514"]
[BlackElo "2430"]
[Result "1-0"]
[Round "04"]
[TimeControl "180+1"]
[Date "2021.05.18"]
[WhiteClock "0:00:09"]
[BlackClock "0:00:13"]

1. b3 {[%clk 0:03:00]}  e5 {[%clk 0:02:58]} 2. Bb2 {[%clk 0:03:01]}  Nc6 {[%clk 0:02:58]} 3. c4 {[%clk 0:03:01]}  Nf6 {[%clk 0:02:58]} 4. Nf3 {[%clk 0:03:02]}  Qe7 {[%clk 0:02:57]} 5. g3 {[%clk 0:02:48]}  e4 {[%clk 0:02:54]} 6. Nd4 {[%clk 0:02:47]}  Qe5 {[%clk 0:02:54]} 7. e3 {[%clk 0:02:14]}  Bc5 {[%clk 0:02:53]} 8. Nb5 {[%clk 0:02:15]}  Qxb2 {[%clk 0:02:50]} 9. N1c3 {[%clk 0:02:15]}  Nb4 {[%clk 0:02:44]} 10. Rb1 {[%clk 0:01:53]}  Qc2 {[%clk 0:02:38]} 11. Nxc7+ {[%clk 0:01:29]}  Kd8 {[%clk 0:02:35]} 12. Nxa8 {[%clk 0:01:30]}  b6 {[%clk 0:02:11]} 13. Qxc2 {[%clk 0:00:56]}  Nxc2+ {[%clk 0:02:11]} 14. Kd1 {[%clk 0:00:57]}  Nb4 {[%clk 0:01:57]} 15. a3 {[%clk 0:00:47]}  Na6 {[%clk 0:01:54]} 16. b4 {[%clk 0:00:45]}  Be7 {[%clk 0:01:50]} 17. c5 {[%clk 0:00:39]}  bxc5 {[%clk 0:01:44]} 18. bxc5 {[%clk 0:00:37]}  Nxc5 {[%clk 0:01:33]} 19. Bg2 {[%clk 0:00:37]}  d5 {[%clk 0:01:29]} 20. d4 {[%clk 0:00:21]}  Nd3 {[%clk 0:01:08]} 21. Kd2 {[%clk 0:00:22]}  Nxf2 {[%clk 0:01:04]} 22. Rhf1 {[%clk 0:00:20]}  Nd3 {[%clk 0:01:00]} 23. Nxd5 {[%clk 0:00:20]}  Nxd5 {[%clk 0:00:52]} 24. Bxe4 {[%clk 0:00:20]}  Nf6 {[%clk 0:00:48]} 25. Bxd3 {[%clk 0:00:21]}  Bxa3 {[%clk 0:00:48]} 26. Rb3 {[%clk 0:00:14]}  Bd6 {[%clk 0:00:47]} 27. Ra1 {[%clk 0:00:14]}  Be6 {[%clk 0:00:44]} 28. Rbb1 {[%clk 0:00:13]}  h5 {[%clk 0:00:32]} 29. e4 {[%clk 0:00:11]}  Nd7 {[%clk 0:00:28]} 30. e5 {[%clk 0:00:10]}  Bb8 {[%clk 0:00:28]} 31. Bb5 {[%clk 0:00:10]}  Ke7 {[%clk 0:00:26]} 32. Bc6 {[%clk 0:00:09]}  f6 {[%clk 0:00:23]} 33. d5 {[%clk 0:00:07]}  Nxe5 {[%clk 0:00:22]} 34. Rb7+ {[%clk 0:00:04]}  Kd6 {[%clk 0:00:21]} 35. Rab1 {[%clk 0:00:04]}  Nc4+ {[%clk 0:00:11]} 36. Kc3 {[%clk 0:00:04]}  Nb6 {[%clk 0:00:11]} 37. Nxb6 {[%clk 0:00:04]}  axb6 {[%clk 0:00:11]} 38. R1xb6 {[%clk 0:00:05]}  Bc7 {[%clk 0:00:11]} 39. Ra6 {[%clk 0:00:05]}  Bc8 {[%clk 0:00:06]} 40. Bb5+ {[%clk 0:00:02]}  Ke5 {[%clk 0:00:06]} 41. Rxc7 {[%clk 0:00:02]}  Bxa6 {[%clk 0:00:07]} 42. Bxa6 {[%clk 0:00:03]}  Kxd5 {[%clk 0:00:07]} 43. Rxg7 {[%clk 0:00:03]}  h4 {[%clk 0:00:08]} 44. g4 {[%clk 0:00:03]}  Ke5 {[%clk 0:00:09]} 45. Bd3 {[%clk 0:00:03]}  Kf4 {[%clk 0:00:09]} 46. Bf5 {[%clk 0:00:03]}  h3 {[%clk 0:00:09]} 47. Rf7 {[%clk 0:00:04]}  Kg5 {[%clk 0:00:09]} 48. Kd4 {[%clk 0:00:04]}  Re8 {[%clk 0:00:10]} 49. Kd3 {[%clk 0:00:04]}  Rd8+ {[%clk 0:00:10]} 50. Ke3 {[%clk 0:00:04]}  Ra8 {[%clk 0:00:10]} 51. Rh7 {[%clk 0:00:04]}  Ra3+ {[%clk 0:00:10]} 52. Ke4 {[%clk 0:00:04]}  Ra4+ {[%clk 0:00:10]} 53. Kd5 {[%clk 0:00:04]}  Ra3 {[%clk 0:00:10]} 54. Rh5+ {[%clk 0:00:04]}  Kf4 {[%clk 0:00:10]} 55. Ke6 {[%clk 0:00:05]}  Ra6+ {[%clk 0:00:10]} 56. Kf7 {[%clk 0:00:05]}  Ke5 {[%clk 0:00:10]} 57. Rxh3 {[%clk 0:00:05]}  Kf4 {[%clk 0:00:10]} 58. Kg6 {[%clk 0:00:06]}  Ke5 {[%clk 0:00:10]} 59. Rh7 {[%clk 0:00:06]}  Kf4 {[%clk 0:00:11]} 60. h4 {[%clk 0:00:07]}  Kg3 {[%clk 0:00:11]} 61. h5 {[%clk 0:00:07]}  Kf4 {[%clk 0:00:12]} 62. h6 {[%clk 0:00:08]}  Ra8 {[%clk 0:00:13]} 63. Rg7 {[%clk 0:00:09]} 1-0


[Site "https://www.chess.com"]

[Event "Titled Tuesday Blitz May 18 2021"]
[White "Sarana, Alexey"]
[Black "Bryakin, Mikhail"]
[WhiteFideId "24133795"]
[BlackFideId "4165314"]
[WhiteElo "2629"]
[BlackElo "2397"]
[Result "1-0"]
[Round "04"]
[TimeControl "180+1"]
[Date "2021.05.18"]
[WhiteClock "0:01:10"]
[BlackClock "0:00:49"]

1. e4 {[%clk 0:03:00]}  d6 {[%clk 0:03:00]} 2. d4 {[%clk 0:03:00]}  Nf6 {[%clk 0:03:00]} 3. Nc3 {[%clk 0:03:00]}  g6 {[%clk 0:03:00]} 4. f4 {[%clk 0:03:01]}  Bg7 {[%clk 0:03:00]} 5. Nf3 {[%clk 0:03:01]}  O-O {[%clk 0:02:53]} 6. Bd3 {[%clk 0:03:01]}  a6 {[%clk 0:02:53]} 7. O-O {[%clk 0:03:01]}  b5 {[%clk 0:02:53]} 8. e5 {[%clk 0:02:57]}  Ne8 {[%clk 0:02:51]} 9. a4 {[%clk 0:02:56]}  b4 {[%clk 0:02:51]} 10. Ne4 {[%clk 0:02:56]}  Bb7 {[%clk 0:02:50]} 11. c3 {[%clk 0:02:53]}  a5 {[%clk 0:02:49]} 12. Qe2 {[%clk 0:02:52]}  e6 {[%clk 0:02:34]} 13. Bd2 {[%clk 0:02:39]}  bxc3 {[%clk 0:02:34]} 14. bxc3 {[%clk 0:02:40]}  Nd7 {[%clk 0:02:34]} 15. Be1 {[%clk 0:02:39]}  Bxe4 {[%clk 0:02:32]} 16. Bxe4 {[%clk 0:02:36]}  d5 {[%clk 0:02:33]} 17. Bd3 {[%clk 0:02:37]}  c5 {[%clk 0:02:33]} 18. g4 {[%clk 0:02:34]}  Nc7 {[%clk 0:02:27]} 19. f5 {[%clk 0:02:32]}  exf5 {[%clk 0:02:10]} 20. gxf5 {[%clk 0:02:32]}  Re8 {[%clk 0:02:09]} 21. Bh4 {[%clk 0:02:29]}  Qc8 {[%clk 0:02:07]} 22. fxg6 {[%clk 0:02:21]}  fxg6 {[%clk 0:02:06]} 23. Ng5 {[%clk 0:02:21]}  Nf8 {[%clk 0:02:03]} 24. Qf3 {[%clk 0:02:09]}  Qd7 {[%clk 0:01:52]} 25. Kh1 {[%clk 0:01:37]}  c4 {[%clk 0:01:52]} 26. Bc2 {[%clk 0:01:35]}  Nce6 {[%clk 0:01:52]} 27. Nf7 {[%clk 0:01:29]}  Reb8 {[%clk 0:01:29]} 28. Nd6 {[%clk 0:01:29]}  Rb2 {[%clk 0:01:20]} 29. Qxd5 {[%clk 0:01:19]}  Rxc2 {[%clk 0:01:14]} 30. Qxa8 {[%clk 0:01:19]}  Rxc3 {[%clk 0:01:10]} 31. Rf7 {[%clk 0:01:16]}  Nc7 {[%clk 0:00:49]} 32. Qxf8+ {[%clk 0:01:10]} 1-0


[Site "https://www.chess.com"]

[Event "Titled Tuesday Blitz May 18 2021"]
[White "Sevian, Samuel"]
[Black "Sumets, Andrey"]
[WhiteFideId "2040506"]
[BlackFideId "14105500"]
[WhiteElo "2978"]
[BlackElo "2619"]
[Result "1-0"]
[Round "04"]
[TimeControl "180+1"]
[Date "2021.05.18"]
[WhiteClock "0:01:16"]
[BlackClock "0:00:06"]

1. e4 {[%clk 0:03:00]}  e6 {[%clk 0:02:59]} 2. d4 {[%clk 0:02:58]}  d5 {[%clk 0:02:59]} 3. Nc3 {[%clk 0:02:58]}  Nf6 {[%clk 0:02:59]} 4. e5 {[%clk 0:02:58]}  Nfd7 {[%clk 0:02:59]} 5. f4 {[%clk 0:02:59]}  c5 {[%clk 0:03:00]} 6. Nf3 {[%clk 0:03:00]}  Nc6 {[%clk 0:03:00]} 7. Be3 {[%clk 0:03:00]}  Qb6 {[%clk 0:03:01]} 8. Qd2 {[%clk 0:03:01]}  Qxb2 {[%clk 0:03:00]} 9. Rb1 {[%clk 0:03:00]}  Qa3 {[%clk 0:03:01]} 10. Bb5 {[%clk 0:02:36]}  a6 {[%clk 0:02:43]} 11. Bxc6 {[%clk 0:02:34]}  bxc6 {[%clk 0:02:43]} 12. O-O {[%clk 0:02:35]}  c4 {[%clk 0:02:43]} 13. Ne2 {[%clk 0:02:33]}  Be7 {[%clk 0:02:36]} 14. f5 {[%clk 0:02:20]}  exf5 {[%clk 0:02:35]} 15. Ng3 {[%clk 0:02:21]}  g6 {[%clk 0:02:09]} 16. Bh6 {[%clk 0:02:18]}  Nf8 {[%clk 0:02:01]} 17. Bg7 {[%clk 0:02:18]}  Rg8 {[%clk 0:02:01]} 18. Bf6 {[%clk 0:02:19]}  Ne6 {[%clk 0:01:56]} 19. Ng5 {[%clk 0:02:15]}  h5 {[%clk 0:01:23]} 20. Nh7 {[%clk 0:02:11]}  f4 {[%clk 0:00:58]} 21. Rf3 {[%clk 0:02:02]}  Qxa2 {[%clk 0:00:52]} 22. Rbf1 {[%clk 0:02:02]}  Rb8 {[%clk 0:00:47]} 23. Ne2 {[%clk 0:01:37]}  Rb2 {[%clk 0:00:44]} 24. Rc3 {[%clk 0:01:26]}  Bb4 {[%clk 0:00:43]} 25. Nxf4 {[%clk 0:01:18]}  Nxf4 {[%clk 0:00:33]} 26. Qxf4 {[%clk 0:01:17]}  Bxc3 {[%clk 0:00:30]} 27. e6 {[%clk 0:01:17]}  Bxe6 {[%clk 0:00:20]} 28. Qc7 {[%clk 0:01:16]}  Qa3 {[%clk 0:00:06]} 29. Qd8# {[%clk 0:01:16]} 1-0


[Site "https://www.chess.com"]

[Event "Titled Tuesday Blitz May 18 2021"]
[White "Sjugirov, Sanan"]
[Black "Pakleza, Zbigniew"]
[WhiteFideId "4189302"]
[BlackFideId "1119290"]
[WhiteElo "2472"]
[BlackElo "2526"]
[Result "1-0"]
[Round "04"]
[TimeControl "180+1"]
[Date "2021.05.18"]
[WhiteClock "0:00:05"]
[BlackClock "0:00:15"]

1. d4 {[%clk 0:03:00]}  d6 {[%clk 0:02:58]} 2. e4 {[%clk 0:02:58]}  Nf6 {[%clk 0:02:58]} 3. Nc3 {[%clk 0:02:57]}  c6 {[%clk 0:02:58]} 4. f3 {[%clk 0:02:47]}  Qb6 {[%clk 0:02:57]} 5. Rb1 {[%clk 0:02:31]}  e5 {[%clk 0:02:56]} 6. Be3 {[%clk 0:02:31]}  Nbd7 {[%clk 0:02:57]} 7. Qd2 {[%clk 0:02:29]}  Qc7 {[%clk 0:02:55]} 8. Nge2 {[%clk 0:02:22]}  g6 {[%clk 0:02:25]} 9. g4 {[%clk 0:02:13]}  b5 {[%clk 0:02:19]} 10. Bg2 {[%clk 0:02:10]}  Bb7 {[%clk 0:02:16]} 11. O-O {[%clk 0:02:08]}  Bg7 {[%clk 0:02:12]} 12. Rbd1 {[%clk 0:02:00]}  Nb6 {[%clk 0:01:59]} 13. b3 {[%clk 0:01:58]}  O-O {[%clk 0:01:56]} 14. Ng3 {[%clk 0:01:56]}  Rfe8 {[%clk 0:01:51]} 15. dxe5 {[%clk 0:01:45]}  dxe5 {[%clk 0:01:50]} 16. Qf2 {[%clk 0:01:41]}  Bf8 {[%clk 0:01:20]} 17. h4 {[%clk 0:01:40]}  b4 {[%clk 0:01:14]} 18. Nce2 {[%clk 0:01:39]}  c5 {[%clk 0:01:14]} 19. g5 {[%clk 0:01:29]}  Nfd7 {[%clk 0:01:09]} 20. h5 {[%clk 0:01:23]}  c4 {[%clk 0:01:06]} 21. Kh2 {[%clk 0:01:10]}  Bc5 {[%clk 0:00:58]} 22. Bh3 {[%clk 0:00:59]}  Rad8 {[%clk 0:00:52]} 23. h6 {[%clk 0:00:53]}  Ba6 {[%clk 0:00:44]} 24. Rfe1 {[%clk 0:00:47]}  Bxe3 {[%clk 0:00:40]} 25. Qxe3 {[%clk 0:00:48]}  Qc5 {[%clk 0:00:41]} 26. Qd2 {[%clk 0:00:36]}  Qf2+ {[%clk 0:00:37]} 27. Bg2 {[%clk 0:00:36]}  c3 {[%clk 0:00:35]} 28. Qd6 {[%clk 0:00:34]}  Qe3 {[%clk 0:00:30]} 29. f4 {[%clk 0:00:24]}  exf4 {[%clk 0:00:23]} 30. Nxf4 {[%clk 0:00:23]}  Nc8 {[%clk 0:00:17]} 31. Rxe3 {[%clk 0:00:22]}  Nxd6 {[%clk 0:00:17]} 32. Rxd6 {[%clk 0:00:22]}  Ne5 {[%clk 0:00:18]} 33. Rxd8 {[%clk 0:00:17]}  Rxd8 {[%clk 0:00:19]} 34. Re1 {[%clk 0:00:12]}  Rd2 {[%clk 0:00:19]} 35. Kg1 {[%clk 0:00:09]}  Rxc2 {[%clk 0:00:19]} 36. Nd5 {[%clk 0:00:08]}  Nd3 {[%clk 0:00:16]} 37. Rf1 {[%clk 0:00:08]}  Rxa2 {[%clk 0:00:08]} 38. Nf6+ {[%clk 0:00:08]}  Kf8 {[%clk 0:00:08]} 39. Nxh7+ {[%clk 0:00:08]}  Ke7 {[%clk 0:00:09]} 40. Nf6 {[%clk 0:00:07]}  c2 {[%clk 0:00:06]} 41. Ne2 {[%clk 0:00:06]}  c1=Q {[%clk 0:00:07]} 42. Nxc1 {[%clk 0:00:06]}  Ne5 {[%clk 0:00:07]} 43. h7 {[%clk 0:00:05]}  Bxf1 {[%clk 0:00:07]} 44. h8=Q {[%clk 0:00:04]}  Ra1 {[%clk 0:00:08]} 45. Qe8+ {[%clk 0:00:04]}  Kd6 {[%clk 0:00:09]} 46. Qd8+ {[%clk 0:00:03]}  Kc5 {[%clk 0:00:10]} 47. Qd5+ {[%clk 0:00:04]}  Kb6 {[%clk 0:00:11]} 48. Qd6+ {[%clk 0:00:04]}  Kb7 {[%clk 0:00:10]} 49. Qe7+ {[%clk 0:00:04]}  Kb6 {[%clk 0:00:11]} 50. Qxe5 {[%clk 0:00:04]}  Bxg2 {[%clk 0:00:10]} 51. Qxa1 {[%clk 0:00:04]}  Kb7 {[%clk 0:00:11]} 52. Qd4 {[%clk 0:00:04]}  Bxe4 {[%clk 0:00:12]} 53. Ne2 {[%clk 0:00:04]}  a5 {[%clk 0:00:13]} 54. Nxe4 {[%clk 0:00:04]}  Ka6 {[%clk 0:00:14]} 55. Qc5 {[%clk 0:00:04]}  a4 {[%clk 0:00:15]} 56. Qc6+ {[%clk 0:00:05]}  Ka5 {[%clk 0:00:15]} 57. Nd4 {[%clk 0:00:05]}  axb3 {[%clk 0:00:15]} 58. Qb5# {[%clk 0:00:05]} 1-0


[Site "https://www.chess.com"]